fUSD/lending_fUSD_20250115
["ID","MTS","AMOUNT","RATE_DAILY","PERIOD"]
[349040689,1736947873412,-500.0,0.00032273,2]
[349040690,1736947873423,-500.0,0.00032273,2]
[349040691,1736947873436,-500.0,0.00032273,2]
[349040692,1736947873448,-500.0,0.00032273,2]
[349040693,1736947873459,-500.0,0.00032273,2]
[349040694,1736947873470,-500.0,0.00032273,2]
[349040695,1736947873482,-500.0,0.00032273,2]
[349040696,1736947873493,-500.0,0.00032273,2]
[349040697,1736947873504,-500.0,0.00032273,2]
[349040698,1736947873515,-500.0,0.00032273,2]
[349040699,1736947873527,-477.49186534,0.00032273,2]
[349040700,1736947873540,-500.0,0.00032273,2]
[349040701,1736947873551,-500.0,0.00032273,2]
[349040702,1736947873563,-500.0,0.00032273,2]
[349040703,1736947873574,-500.0,0.00032273,2]
[349040704,1736947873586,-500.0,0.00032273,2]
[349040705,1736947873596,-500.0,0.00032273,2]
[349040706,1736947873607,-500.0,0.00032273,2]
[349040707,1736947873618,-500.0,0.00032273,2]
[349040708,1736947873629,-500.0,0.00032273,2]
[349040709,1736947873640,-500.0,0.00032273,2]
[349040710,1736947873658,-500.0,0.00032273,2]
[349040711,1736947873669,-500.0,0.00032273,2]
[349040712,1736947873679,-500.0,0.00032273,2]
[349040713,1736947873690,-500.0,0.00032273,2]
[349040714,1736947873700,-500.0,0.00032273,2]
[349040715,1736947873711,-500.0,0.00032273,2]
[349040716,1736947873722,-500.0,0.00032273,2]
[349040717,1736947873734,-500.0,0.00032273,2]
[349040718,1736947873745,-500.0,0.00032273,2]
[349040719,1736947873757,-500.0,0.00032273,2]
[349040720,1736947873768,-501.82904628,0.00032273,2]
[349040721,1736947873778,-421.63735415,0.00032273,2]
[349040722,1736947873790,-2583.03,0.00032273,2]
[349040723,1736947873801,-500.0,0.00032273,2]
[349040724,1736947873812,-500.0,0.00032273,2]
[349040725,1736947873824,-500.0,0.00032273,2]
[349040726,1736947873835,-500.0,0.00032273,2]
[349040727,1736947873845,-500.0,0.00032273,2]
[349040728,1736947873856,-500.0,0.00032273,2]
[349040729,1736947873867,-625.28952574,0.00032273,2]
[349040730,1736947873878,-500.0,0.00032273,2]
[349040731,1736947873891,-500.0,0.00032273,2]
[349040732,1736947873910,-500.0,0.00032273,2]
[349040733,1736947873921,-500.0,0.00032273,2]
[349040734,1736947873932,-500.0,0.00032273,2]
[349040735,1736947873943,-500.0,0.00032273,2]
[349040736,1736947873953,-500.0,0.00032273,2]
[349040737,1736947873963,-500.0,0.00032273,2]
[349040738,1736947873973,-500.0,0.00032273,2]
[349040739,1736947873984,-500.0,0.00032273,2]
[349040740,1736947873995,-500.0,0.00032273,2]
[349040741,1736947874006,-628.0831883,0.00032273,2]
[349040742,1736947874017,-500.0,0.00032273,2]
[349040743,1736947874028,-567.21929947,0.00032273,2]
[349040744,1736947874039,-500.0,0.00032273,2]
[349040745,1736947874050,-500.0,0.00032273,2]
[349040746,1736947874060,-500.0,0.00032273,2]
[349040747,1736947874071,-500.0,0.00032273,2]
[349040748,1736947874081,-500.0,0.00032273,2]
[349040749,1736947874095,-500.0,0.00032273,2]
[349040750,1736947874105,-500.0,0.00032273,2]
[349040751,1736947874116,-500.0,0.00032273,2]
[349040752,1736947874126,-500.0,0.00032273,2]
[349040753,1736947874137,-500.0,0.00032273,2]
[349040754,1736947874156,-500.0,0.00032273,2]
[349040755,1736947874166,-500.0,0.00032273,2]
[349040756,1736947874183,-500.0,0.00032273,2]
[349040757,1736947874198,-500.0,0.00032273,2]
[349040758,1736947874211,-500.0,0.00032273,2]
[349040759,1736947874222,-3278.34,0.00032273,2]
[349040760,1736947874233,-500.0,0.00032273,2]
[349040761,1736947874245,-500.0,0.00032273,2]
[349040762,1736947874256,-500.0,0.00032273,2]
[349040763,1736947874267,-228.81,0.00032289,120]
[349040764,1736947874277,-2000.0,0.000323,12]
[349040765,1736947874288,-2003.0,0.0003245,10]
[349040766,1736947874301,-713.791,0.000325,120]
[349040767,1736947874312,-713.792,0.000325,120]
[349040768,1736947874324,-713.791,0.000325,120]
[349040769,1736947874334,-713.792,0.000325,120]
[349040770,1736947874344,-713.791,0.000325,120]
[349040771,1736947874354,-264.58369938,0.00032547,2]
[349040772,1736947874364,-500.0,0.00032547,2]
[349040773,1736947874372,-170.59,0.00032547,2]
[349040774,1736947874386,-212.17182,0.00032547,2]
[349040775,1736947874402,-500.0,0.00032547,2]
[349040776,1736947874412,-500.0,0.00032547,2]
[349040777,1736947874423,-500.0,0.00032547,2]
[349040778,1736947874433,-500.0,0.00032547,2]
[349040779,1736947874443,-177.61565417,0.00032547,2]
[349040780,1736947874452,-500.0,0.00032547,2]
[349040781,1736947874595,-500.0,0.00032547,2]
[349040782,1736947874607,-503.96242966,0.00032547,2]
[349040783,1736947874617,-500.0,0.00032547,2]
[349040784,1736947874627,-500.0,0.00032547,2]
[349040785,1736947874639,-500.0,0.00032547,2]
[349040786,1736947874654,-500.0,0.00032547,2]
[349040787,1736947874668,-500.0,0.00032547,2]
[349040788,1736947874678,-500.0,0.00032547,2]
[349040789,1736947874688,-500.0,0.00032547,2]
[349040790,1736947874699,-500.0,0.00032547,2]
[349040791,1736947874709,-500.0,0.00032547,2]
[349040792,1736947874719,-500.0,0.00032547,2]
[349040793,1736947874730,-500.0,0.00032547,2]
[349040794,1736947874741,-500.0,0.00032547,2]
[349040795,1736947874752,-500.0,0.00032547,2]
[349040796,1736947874763,-500.0,0.00032547,2]
[349040797,1736947874772,-500.0,0.00032547,2]
[349040798,1736947874782,-500.0,0.00032547,2]
[349040799,1736947874792,-500.0,0.00032547,2]
[349040800,1736947874803,-500.0,0.00032547,2]
[349040801,1736947874814,-500.0,0.00032547,2]
[349040802,1736947874823,-500.0,0.00032547,2]
[349040803,1736947874833,-500.0,0.00032547,2]
[349040804,1736947874842,-500.0,0.00032547,2]
[349040805,1736947874852,-500.0,0.00032547,2]
[349040806,1736947874862,-500.0,0.00032547,2]
[349040807,1736947874872,-500.0,0.00032547,2]
[349040808,1736947874883,-500.0,0.00032547,2]
[349040809,1736947874897,-500.0,0.00032547,2]
[349040810,1736947874907,-500.0,0.00032547,2]
[349040811,1736947874918,-500.0,0.00032547,2]
[349040812,1736947874928,-500.0,0.00032547,2]
[349040813,1736947874938,-500.0,0.00032547,2]
[349040814,1736947874948,-500.0,0.00032547,2]
[349040815,1736947874958,-500.0,0.00032547,2]
[349040816,1736947874969,-500.0,0.00032547,2]
[349040817,1736947874979,-500.0,0.00032547,2]
[349040818,1736947874990,-2583.03,0.00032547,2]
[349040819,1736947874999,-500.0,0.00032547,2]
[349040820,1736947875009,-500.0,0.00032547,2]
[349040821,1736947875019,-500.0,0.00032547,2]
[349040822,1736947875029,-500.0,0.00032547,2]
[349040823,1736947875038,-347.749056,0.00032547,2]
[349040824,1736947875048,-500.0,0.00032547,2]
[349040825,1736947875057,-500.0,0.00032547,2]
[349040826,1736947875067,-500.0,0.00032547,2]
[349040827,1736947875077,-643.58747131,0.00032547,2]
[349040828,1736947875088,-500.0,0.00032547,2]
[349040829,1736947875097,-500.0,0.00032547,2]
[349040830,1736947875107,-500.0,0.00032547,2]
[349040831,1736947875117,-500.0,0.00032547,2]
[349040832,1736947875127,-500.0,0.00032547,2]
[349040833,1736947875137,-500.0,0.00032547,2]
[349040834,1736947875151,-500.0,0.00032547,2]
[349040835,1736947875161,-500.0,0.00032547,2]
[349040836,1736947875171,-500.0,0.00032547,2]
[349040837,1736947875181,-500.0,0.00032547,2]
[349040838,1736947875191,-3278.34,0.00032547,2]
[349040839,1736947875200,-502.81916589,0.00032547,2]
[349040840,1736947875210,-500.0,0.00032547,2]
[349040841,1736947875220,-259.03333333,0.00032548,120]
[349040842,1736947875229,-4603.79667524,0.000328,2]
[349040843,1736947875239,-254.67365239,0.000328,7]
[349040844,1736947875248,-5566.789,0.000328,30]
[349040845,1736947875258,-166.50549518,0.000328,2]
[349040846,1736947875268,-579.72,0.00032821,2]
[349040847,1736947875277,-500.0,0.00032821,2]
[349040848,1736947875287,-2583.03,0.00032821,2]
[349040849,1736947875296,-500.0,0.00032821,2]
[349040850,1736947875306,-500.0,0.00032821,2]
[349040851,1736947875315,-500.0,0.00032821,2]
[349040852,1736947875325,-500.0,0.00032821,2]
[349040853,1736947875334,-175.65,0.00032821,2]
[349040854,1736947875343,-500.0,0.00032821,2]
[349040855,1736947875353,-500.0,0.00032821,2]
[349040856,1736947875362,-210.22,0.00032821,2]
[349040857,1736947875372,-500.0,0.00032821,2]
[349040858,1736947875386,-500.0,0.00032821,2]
[349040859,1736947875400,-3278.34,0.00032821,2]
[349040860,1736947875411,-500.0,0.00032876,15]
[349040861,1736947875422,-500.0,0.00032876,15]
[349040862,1736947875437,-500.0,0.00032876,15]
[349040863,1736947875446,-229.02941927,0.00032876,15]
[349040864,1736947875456,-167.2,0.00032877,120]
[349040865,1736947875467,-327.91,0.00032877,2]
[349040866,1736947875477,-200.0,0.00032877,60]
[349040867,1736947875486,-293.592,0.000329,2]
[349040868,1736947875496,-279.2727,0.000329,2]
[349040869,1736947875505,-17297.51655612,0.000329,15]
[349040870,1736947875515,-212.15943045,0.000329,60]
[349040871,1736947875525,-58059.7893,0.000329,2]
[349040872,1736947875536,-500.0,0.000329,2]
[349040873,1736947875546,-1000.0,0.000329,12]
[349040874,1736947875557,-100000.0,0.00033,33]
[349040875,1736947875567,-62775.14242233,0.00033,4]
[349040876,1736947875577,-24856.73413561,0.00033,2]
[349040877,1736947875587,-5222.0,0.00033,10]
[349040878,1736947875597,-500.0,0.00033,120]
[349040879,1736947875606,-2453.03407011,0.00033,120]
[349040880,1736947875617,-195.5175368,0.00033,120]
[349040881,1736947875627,-25000.0,0.00033,15]
[349040882,1736947875637,-1800.0,0.00033,34]
[349040883,1736947875651,-100000.0,0.00033,15]
[349040884,1736947875661,-512.35871,0.00033,14]
[349040885,1736947875672,-1299.87,0.00033,14]
[349040886,1736947875682,-210.0,0.00033,2]
[349040887,1736947875691,-2583.03,0.00033095,2]
[349040888,1736947875701,-500.0,0.00033095,2]
[349040889,1736947875711,-3278.34,0.00033095,2]
[349040890,1736947875722,-1007.0,0.000331,7]
[349040891,1736947875731,-1449.13897398,0.00033176,2]
[349040892,1736947875742,-500.0,0.000333,20]
[349040893,1736947875751,-2000.0,0.000333,12]
[349040894,1736947875761,-2583.03,0.00033369,2]
[349040895,1736947875771,-500.0,0.00033369,2]
[349040896,1736947875783,-3278.34,0.00033369,2]
[349040897,1736947875792,-259.03333333,0.00033397,120]
[349040898,1736947875802,-3000.0,0.000334,2]
[349040899,1736947875811,-1156.16092825,0.000335,2]
[349040900,1736947875822,-159.45,0.000335,31]
[349040901,1736947875832,-2583.03,0.00033643,2]
[349040902,1736947875841,-500.0,0.00033643,2]
[349040903,1736947875851,-3278.34,0.00033643,2]
[349040904,1736947875861,-768.0,0.00033674,30]
[349040905,1736947875870,-167.2,0.00033836,120]
[349040906,1736947875880,-154.706,0.0003389,120]
[349040907,1736947875890,-1299.87,0.000339,14]
[349040908,1736947875904,-2583.03,0.00033917,2]
[349040909,1736947875914,-500.0,0.00033917,2]
[349040910,1736947875923,-3278.34,0.00033917,2]
[349040911,1736947875933,-100000.0,0.00034,34]
[349040912,1736947875943,-1000.0,0.00034,120]
[349040913,1736947875952,-500.0,0.00034,120]
[349040914,1736947875962,-1800.0,0.00034,35]
[349040915,1736947875971,-1219.36386866,0.00034,120]
[349040916,1736947875981,-55000.0,0.00034,120]
[349040917,1736947875993,-238.11,0.00034125,2]
[349040918,1736947876003,-2583.03,0.00034191,2]
[349040919,1736947876012,-500.0,0.00034191,2]
[349040920,1736947876022,-3278.34,0.00034191,2]
[349040921,1736947876031,-150.011513,0.00034198,120]
[349040922,1736947876040,-259.03333333,0.00034247,120]
[349040923,1736947876050,-2000.0,0.000343,12]
[349040924,1736947876059,-1449.13897398,0.00034383,2]
[349040925,1736947876068,-2003.0,0.0003445,10]
[349040926,1736947876078,-2583.03,0.00034465,2]
[349040927,1736947876087,-500.0,0.00034465,2]
[349040928,1736947876098,-3278.34,0.00034465,2]
[349040929,1736947876107,-150.011513,0.00034498,120]
[349040930,1736947876117,-150.0,0.00034548,10]
[349040931,1736947876127,-2583.03,0.00034739,2]
[349040932,1736947876137,-500.0,0.00034739,2]
[349040933,1736947876151,-3278.34,0.00034739,2]
[349040934,1736947876160,-167.2,0.00034795,120]
[349040935,1736947876170,-150.011513,0.00034798,120]
[349040936,1736947876180,-1299.87,0.000348,14]
[349040937,1736947876190,-1400.0,0.000349,12]
[349040938,1736947876200,-6174.56480093,0.000349,2]
[349040939,1736947876210,-508.68651063,0.00034913,2]
[349040940,1736947876219,-100000.0,0.00035,35]
[349040941,1736947876229,-1031.61067317,0.00035,2]
[349040942,1736947876239,-3900.0,0.00035,7]
[349040943,1736947876248,-158.0,0.00035,5]
[349040944,1736947876258,-2500.0,0.00035,20]
[349040945,1736947876267,-200.0,0.00035,120]
[349040946,1736947876276,-344.27851901,0.00035,120]
[349040947,1736947876286,-500.0,0.00035,120]
[349040948,1736947876295,-3254.02124248,0.00035,120]
[349040949,1736947876304,-2500.0,0.00035,30]
[349040950,1736947876313,-1000.0,0.00035,120]
[349040951,1736947876323,-109978.55190704,0.00035,30]
[349040952,1736947876332,-1000.0,0.00035,10]
[349040953,1736947876341,-447.1863112,0.00035,60]
[349040954,1736947876350,-1800.0,0.00035,36]
[349040955,1736947876359,-100000.0,0.00035,30]
[349040956,1736947876368,-2000.0,0.00035,30]
[349040957,1736947876377,-1000.0,0.00035,120]
[349040958,1736947876389,-1102.07000099,0.00035,120]
[349040959,1736947876403,-323.18000715,0.00035,120]
[349040960,1736947876412,-3001.0304709,0.00035,120]
[349040961,1736947876423,-279.64630004,0.00035,120]
[349040962,1736947876433,-500.0,0.00035,120]
[349040963,1736947876443,-151.0,0.00035,7]
[349040964,1736947876453,-151.0,0.00035,7]
[349040965,1736947876462,-2916.0,0.00035,7]
[349040966,1736947876472,-2916.0,0.00035,7]
[349040967,1736947876482,-202.251548,0.00035,7]
[349040968,1736947876491,-500.003359,0.00035,7]
[349040969,1736947876501,-4000.0,0.00035,120]
[349040970,1736947876510,-5000.0,0.00035,60]
[349040971,1736947876520,-10000.0,0.00035,120]
[349040972,1736947876530,-2583.03,0.00035013,2]
[349040973,1736947876539,-500.0,0.00035013,2]
[349040974,1736947876549,-3278.34,0.00035013,2]
[349040975,1736947876559,-220.8,0.00035068,2]
[349040976,1736947876568,-259.03333333,0.00035096,120]
[349040977,1736947876577,-150.011513,0.00035198,120]
[349040978,1736947876587,-228.81,0.00035224,120]
[349040979,1736947876596,-2583.03,0.00035287,2]
[349040980,1736947876606,-500.0,0.00035287,2]
[349040981,1736947876616,-3278.34,0.00035287,2]
[349040982,1736947876625,-2000.0,0.000353,18]
[349040983,1736947876635,-201.3551698,0.000353,7]
[349040984,1736947876647,-2668.31331964,0.000353,2]
[349040985,1736947876657,-500.0,0.00035399,7]
[349040986,1736947876666,-1000000.0,0.000354,120]
[349040987,1736947876675,-233.68771,0.000354,7]
[349040988,1736947876685,-233.68771,0.000354,7]
[349040989,1736947876695,-151.0,0.000354,7]
[349040990,1736947876704,-151.0,0.000354,7]
[349040991,1736947876714,-151.0,0.000354,7]
[349040992,1736947876723,-151.0,0.000354,7]
[349040993,1736947876734,-151.0,0.000354,7]
[349040994,1736947876744,-240.946784,0.000354,7]
[349040995,1736947876753,-151.0,0.000354,7]
[349040996,1736947876763,-2916.0,0.000354,7]
[349040997,1736947876772,-2916.0,0.000354,7]
[349040998,1736947876782,-500.003359,0.000354,7]
[349040999,1736947876792,-150.011513,0.00035498,120]
[349041000,1736947876802,-500.0,0.00035536,7]
[349041001,1736947876812,-2583.03,0.00035561,2]
[349041002,1736947876821,-500.0,0.00035561,2]
[349041003,1736947876831,-3278.34,0.00035561,2]
[349041004,1736947876841,-1449.13897398,0.0003559,2]
[349041005,1736947876850,-200.0,0.000356,2]
[349041006,1736947876860,-888.0,0.00035616,30]
[349041007,1736947876870,-888.0,0.00035616,30]
[349041008,1736947876880,-888.0,0.00035616,30]
[349041009,1736947876889,-888.0,0.00035616,30]
[349041010,1736947876902,-888.0,0.00035616,30]
[349041011,1736947876912,-888.0,0.00035616,30]
[349041012,1736947876921,-888.0,0.00035616,30]
[349041013,1736947876931,-888.0,0.00035616,30]
[349041014,1736947876940,-888.0,0.00035616,30]
[349041015,1736947876949,-501.22798876,0.00035616,30]
[349041016,1736947876959,-200.0,0.00035616,60]
[349041017,1736947876968,-167.2,0.00035753,120]
[349041018,1736947876977,-150.011513,0.00035798,120]
[349041019,1736947876987,-2583.03,0.00035835,2]
[349041020,1736947876995,-500.0,0.00035835,2]
[349041021,1736947877004,-3278.34,0.00035835,2]
[349041022,1736947877014,-500.0,0.00035918,120]
[349041023,1736947877023,-259.03333333,0.00035945,120]
[349041024,1736947877032,-468.68084596,0.00035987,120]
[349041025,1736947877041,-100000.0,0.00036,36]
[349041026,1736947877050,-2504.02272102,0.00036,60]
[349041027,1736947877059,-635.81292502,0.00036,2]
[349041028,1736947877067,-1000.0,0.00036,120]
[349041029,1736947877076,-20000.0,0.00036,4]
[349041030,1736947877085,-10000.0,0.00036,120]
[349041031,1736947877096,-1800.0,0.00036,37]
[349041032,1736947877106,-210.0,0.00036,2]
[349041033,1736947877115,-888.94407,0.00036088,30]
[349041034,1736947877242,-2583.03,0.00036109,2]
[349041035,1736947877253,-500.0,0.00036109,2]
[349041036,1736947877262,-3278.34,0.00036109,2]
[349041037,1736947877272,-150.011513,0.00036198,120]
[349041038,1736947877282,-3000.0,0.000362,2]
[349041039,1736947877291,-888.94407,0.00036288,30]
[349041040,1736947877300,-2000.0,0.000363,18]
[349041041,1736947877310,-2583.03,0.00036383,2]
[349041042,1736947877320,-500.0,0.00036383,2]
[349041043,1736947877329,-3278.34,0.00036383,2]
[349041044,1736947877339,-238.11,0.00036389,2]
[349041045,1736947877348,-888.94407,0.00036488,30]
[349041046,1736947877358,-151.011408,0.00036498,120]
[349041047,1736947877367,-2583.03,0.00036656,2]
[349041048,1736947877377,-500.0,0.00036656,2]
[349041049,1736947877391,-3278.34,0.00036656,2]
[349041050,1736947877408,-3702.39422518,0.00036666,120]
[349041051,1736947877417,-888.94407,0.00036688,30]
[349041052,1736947877430,-167.2,0.00036712,120]
[349041053,1736947877440,-259.03333333,0.00036795,120]
[349041054,1736947877450,-1449.13897398,0.00036797,2]
[349041055,1736947877461,-151.011408,0.00036798,120]
[349041056,1736947877471,-500.0,0.00036835,120]
[349041057,1736947877480,-368.05,0.00036842,2]
[349041058,1736947877490,-86464.2903583,0.000369,30]
[349041059,1736947877500,-3000.0,0.000369,2]
[349041060,1736947877510,-1700.0,0.000369,13]
[349041061,1736947877519,-2583.03,0.0003693,2]
[349041062,1736947877528,-500.0,0.0003693,2]
[349041063,1736947877538,-3278.34,0.0003693,2]
[349041064,1736947877548,-100000.0,0.00037,37]
[349041065,1736947877557,-151445.93695486,0.00037,2]
[349041066,1736947877567,-500.0,0.00037,120]
[349041067,1736947877576,-20000.0,0.00037,3]
[349041068,1736947877585,-20000.0,0.00037,14]
[349041069,1736947877595,-45349.08080348,0.00037,30]
[349041070,1736947877606,-1800.0,0.00037,38]
[349041071,1736947877615,-2538.28991719,0.00037,120]
[349041072,1736947877625,-13064.0,0.00037,117]
[349041073,1736947877634,-1075.0,0.00037042,30]
[349041074,1736947877648,-888.94407,0.00037088,30]
[349041075,1736947877658,-151.011408,0.00037198,120]
[349041076,1736947877667,-2583.03,0.00037204,2]
[349041077,1736947877677,-530.0,0.00037204,2]
[349041078,1736947877687,-3278.34,0.00037204,2]
[349041079,1736947877697,-888.94407,0.00037288,30]
[349041080,1736947877707,-2000.0,0.000373,18]
[349041081,1736947877717,-2583.03,0.00037478,2]
[349041082,1736947877726,-3278.34,0.00037478,2]
[349041083,1736947877735,-888.94407,0.00037488,30]
[349041084,1736947877745,-151.011408,0.00037498,120]
[349041085,1736947877754,-4154.27299266,0.0003759,2]
[349041086,1736947877763,-259.03333333,0.00037644,120]
[349041087,1736947877773,-167.2,0.00037671,120]
[349041088,1736947877782,-888.94407,0.00037688,30]
[349041089,1736947877792,-14029.03210258,0.000377,60]
[349041090,1736947877802,-2583.03,0.00037752,2]
[349041091,1736947877812,-3278.34,0.00037752,2]
[349041092,1736947877821,-500.0,0.00037753,120]
[349041093,1736947877831,-151.011408,0.00037798,120]
[349041094,1736947877840,-166.33424083,0.000378,2]
[349041095,1736947877850,-154.696,0.0003789,120]
[349041096,1736947877859,-9965.67103605,0.000379,5]
[349041097,1736947877868,-100000.0,0.00038,38]
[349041098,1736947877879,-2172.0707194,0.00038,2]
[349041099,1736947877889,-947.04085542,0.00038,120]
[349041100,1736947877903,-1000.0,0.00038,120]
[349041101,1736947877913,-417.44994367,0.00038,120]
[349041102,1736947877922,-310.38949072,0.00038,120]
[349041103,1736947877932,-500.0,0.00038,120]
[349041104,1736947877941,-10000.0,0.00038,30]
[349041105,1736947877951,-479.13609257,0.00038,30]
[349041106,1736947877961,-20000.0,0.00038,2]
[349041107,1736947877971,-20000.0,0.00038,6]
[349041108,1736947877981,-20000.0,0.00038,7]
[349041109,1736947877991,-20000.0,0.00038,8]
[349041110,1736947878001,-20000.0,0.00038,9]
[349041111,1736947878011,-20000.0,0.00038,10]
[349041112,1736947878021,-20000.0,0.00038,11]
[349041113,1736947878031,-20000.0,0.00038,12]
[349041114,1736947878042,-20000.0,0.00038,13]
[349041115,1736947878052,-2011.32,0.00038,120]
[349041116,1736947878062,-450.0,0.00038,120]
[349041117,1736947878073,-30000.0,0.00038,120]
[349041118,1736947878083,-212.42651684,0.00038,30]
[349041119,1736947878096,-2000.0,0.00038,30]
[349041120,1736947878107,-387.27980268,0.00038,30]
[349041121,1736947878117,-595.0,0.00038,120]
[349041122,1736947878127,-5636.25411489,0.00038,120]
[349041123,1736947878137,-2525.16789097,0.00038,120]
[349041124,1736947878152,-151.0,0.00038,7]
[349041125,1736947878162,-267.037425,0.00038,7]
[349041126,1736947878171,-461.367321,0.00038,7]
[349041127,1736947878181,-461.367321,0.00038,7]
[349041128,1736947878191,-151.0,0.00038,7]
[349041129,1736947878200,-186.868609,0.00038,2]
[349041130,1736947878210,-151.0,0.00038,7]
[349041131,1736947878219,-151.0,0.00038,7]
[349041132,1736947878229,-225.96,0.00038,7]
[349041133,1736947878239,-233.68771,0.00038,7]
[349041134,1736947878249,-233.68771,0.00038,7]
[349041135,1736947878258,-151.0,0.00038,7]
[349041136,1736947878267,-151.0,0.00038,7]
[349041137,1736947878277,-151.0,0.00038,7]
[349041138,1736947878287,-151.0,0.00038,7]
[349041139,1736947878297,-291.659972,0.00038,7]
[349041140,1736947878306,-151.0,0.00038,7]
[349041141,1736947878315,-2916.0,0.00038,7]
[349041142,1736947878324,-2916.0,0.00038,7]
[349041143,1736947878334,-500.003359,0.00038,7]
[349041144,1736947878344,-1449.13897398,0.00038003,2]
[349041145,1736947878354,-2583.03,0.00038026,2]
[349041146,1736947878363,-3278.34,0.00038026,2]
[349041147,1736947878373,-773.47680524,0.00038141,120]
[349041148,1736947878387,-151.011408,0.00038198,120]
[349041149,1736947878402,-2000.0,0.00038248,31]
[349041150,1736947878412,-509.0,0.000383,20]
[349041151,1736947878423,-2583.05711341,0.000383,2]
[349041152,1736947878433,-3278.56171386,0.000383,2]
[349041153,1736947878443,-590.12831926,0.00038325,120]
[349041154,1736947878454,-5000.0,0.00038356,30]
[349041155,1736947878463,-200.0,0.00038356,60]
[349041156,1736947878473,-409.9933002,0.000384,33]
[349041157,1736947878483,-166.73744827,0.000384,33]
[349041158,1736947878493,-259.03333333,0.00038493,120]
[349041159,1736947878502,-151.011408,0.00038498,120]
[349041160,1736947878512,-1000.0,0.00038499,120]
[349041161,1736947878521,-167.2,0.0003863,120]
[349041162,1736947878531,-238.11,0.00038653,2]
[349041163,1736947878541,-500.0,0.00038671,120]
[349041164,1736947878551,-151.011408,0.00038798,120]
[349041165,1736947878560,-13873.15,0.000388,120]
[349041166,1736947878570,-6547.89455869,0.0003888,120]
[349041167,1736947878580,-1000.0,0.000389,20]
[349041168,1736947878589,-3000.0,0.000389,2]
[349041169,1736947878599,-14371.5,0.00038909,117]
[349041170,1736947878608,-166.0,0.0003897,120]
[349041171,1736947878618,-166.0,0.0003898,120]
[349041172,1736947878628,-7353.73301319,0.0003899,14]
[349041173,1736947878638,-166.0,0.0003899,120]
[349041174,1736947878653,-1000.0,0.00038999,120]
[349041175,1736947878663,-100000.0,0.00039,39]
[349041176,1736947878673,-2139.47664817,0.00039,14]
[349041177,1736947878683,-921.0,0.00039,2]
[349041178,1736947878693,-15000.0,0.00039,21]
[349041179,1736947878704,-500.0,0.00039,120]
[349041180,1736947878715,-1387.1061535,0.00039,120]
[349041181,1736947878726,-1113.01537305,0.00039,120]
[349041182,1736947878736,-10282.45322793,0.00039,120]
[349041183,1736947878747,-10000.0,0.00039,120]
[349041184,1736947878757,-20000.0,0.00039,5]
[349041185,1736947878768,-3015.1405,0.00039,120]
[349041186,1736947878778,-2600.0,0.00039,120]
[349041187,1736947878789,-7000.0,0.00039,2]
[349041188,1736947878799,-1002.0,0.00039,60]